{"text_format":"1","workbook":"xlsx","n_sheets":3,"sheets":["Interests","Warning","Sample"],"not_rendered":{"charts":1,"images":20,"macros":1,"external_links":0,"defined_names":23,"comments":0,"pivot_tables":0},"unopened":[],"bounds":{"document_bytes":16777216,"sheet_cells":100000,"rows_first":2000,"rows_last":500,"rows_between":2000,"halvings":0,"cell_chars":16384,"cell_head_chars":4096},"cells_cut":0,"cells_raw":0,"read":"whole","date_system":"1900"}

{"sheet":"Interests","index":0,"n_rows":197,"n_cols":19,"rows_kept":197,"cut":false,"hidden":true,"merged":[]}
[null,null,null,null,"Calculations"]
[null,"WHAT INTERESTS ME THE MOST"]
[null,null,null,null,null,null,"l"]
[null,"Name:","Mary-Jane Brown",null,null,null,"ll"]
[null,"Date Updated:","2014-09-23",null,null," ","lll"]
[null,null,null,null,null,null,"llll"]
["Biology",null,null,{"$f":"NOW()","v":"2014-11-24T20:05:24.700"},5,null,"lllll",null,null,null,null,null,"Total/Count","Col 1",null,"Col 2",null,"Col 3"]
[null,null,null,null,null,null,null,null,null,null,null,null,35,"Agricultural science",0,"Forensics",0,"Palaeontology",0]
[null,null,null,null,null,null,null,null,null,null,null,null,null,"Agriculture",0,"Forestry",0,"Pathology",0]
[null,null,null,null,null,null,null,null,null,null,null,null,null,"Anthropology",0,"Genetics",0,"Pharmacy",0]
[null,null,null,null,null,null,null,null,null,null,null,null,null,"Biochemistry",0,"Horticulture",0,"Physiology",0]
[null,null,null,null,null,null,null,null,null,null,null,null,null,"Biotechnology",0,"Marine science",0,"Physiotherapy",0]
[null,null,null,null,null,null,null,null,null,null,null,null,null,"Botany",0,"Medical science",0,"Sports medicine",0]
[null,null,null,null,null,null,null,null,null,null,null,null,null,"Dairying",0,"Medicine",0,"Sports science",0]
[null,null,null,null,null,null,null,null,null,null,null,null,null,"Dentistry",0,"Microbiology",0,"Surgery",0]
[null,null,null,null,null,null,null,null,null,null,null,null,null,"Entomology",0,"Nuclear medicine",0,"Vet science",0]
[null,null,null,null,null,null,null,null,null,null,null,null,null,"Environmental science",0,"Nutrition",0,"Winemaking",0]
[null,null,null,null,null,null,null,null,null,null,null,null,null,"Fisheries",0,"Optometry",0,"Zoology",0]
[null,null,null,null,null,null,null,null,null,null,null,null,null,"Food technology",0,"Paediatrics",0]
[]
["Chemistry",null,null,{"$f":"NOW()","v":"2014-11-24T20:05:24.700"},4]
[null,null,null,null,null,null,null,null,null,null,null,null,25,"Agriculture",0,"Food technology",0,"Nutrition",0]
[null,"Agronomy","Forestry","Oceanography",null,null,null,null,null,null,null,null,null,"Agronomy",0,"Forestry",0,"Oceanography",0]
[null,"Biochemist","Genetics","Pathology",null,null,null,null,null,null,null,null,null,"Biochemist",0,"Genetics",0,"Pathology",0]
[null,"Biomedical eng","Geology","Pharmacy",null,null,null,null,null,null,null,null,null,"Biomedical eng",0,"Geology",0,"Pharmacy",0]
[null,"Botany","Industrial engineering","Physiology",null,null,null,null,null,null,null,null,null,"Botany",0,"Industrial engineering",0,"Physiology",0]
[null,"Chemical eng","Medical science","Sports science"," ",null,null,null,null,null,null,null,null,"Chemical eng",0,"Medical science",0,"Sports science",0]
[null,"Chemist","Medicine","Vet science",null,null,null,null,null,null,null,null,null,"Chemist",0,"Medicine",0,"Vet science",0]
[null,"Ecology","Metallurgy",null,null,null,null,null,null,null,null,null,null,"Ecology",0,"Metallurgy",0]
[null,"Environmental science","Microbiology",null,null,null,null,null,null,null,null,null,null,"Environmental science",0,"Microbiology",0]
[]
["Food & Agriculture",null,null,{"$f":"NOW()","v":"2014-11-24T20:05:24.700"},3]
[null,null,null,null,null,null,null,null,null,null,null,null,23,"Agribusiness",0,"Environ. engineering",0,"Horticulture",0]
[null,null,null,null,null,null,null,null,null,null,null,null,null,"Resource economics",0,"Environ. health",0,"Natural resource mgmt",0]
[null,null,null,null,null,null,null,null,null,null,null,null,null,"Agricultural eng.",0,"Environ. science",0,"Nutrition",0]
[null,null,null,null,null,null,null,null,null,null,null,null,null,"Agricultural science",0,"Fisheries",0,"Organic chemistry",0]
[null,null,null,null,null,null,null,null,null,null,null,null,null,"Agronomy",0,"Food science",0,"Viticulture",0]
[null,null,null,null,null,null,null,null,null,null,null,null,null,"Consumer science",0,"Food technology",0,"Winemaking",0]
[null,null,null,null,null,null,null,null,null,null,null,null,null,"Dietetics",0,"Forestry",0,"Zoology",0]
[null,null,null,null,null,null,null,null,null,null,null,null,null,"Ecology",0,"Geography",0]
[]
["Environmental Science",null,null,{"$f":"NOW()","v":"2014-11-24T20:05:24.700"},3]
[null,null,null,null,null,null,null,null,null,null,null,null,35,"Agricultural eng.",0,"Ecology",0,"Metallurgy",0]
[null,null,null,null,null,null,null,null,null,null,null,null,null,"Agricultural science",0,"Environ. economics",0,"Meteorology",0]
[null,null,null,null,null,null,null,null,null,null,null,null,null,"Agronomy",0,"Environmental eng.",0,"Microbiology",0]
[null,null,null,null,null,null,null,null,null,null,null,null,null,"Animal science",0,"Environmental science",0,"Mining engineering",0]
[null,null,null,null,null,null,null,null,null,null,null,null,null,"Biological science",0,"Fisheries",0,"Natural resources",0]
[null,null,null,null,null,null,null,null,null,null,null,null,null,"Biotechnology",0,"Geog. info systems",0,"Soil scientist",0]
[null,null,null,null,null,null,null,null,null,null,null,null,null,"Botany",0,"Geological eng.",0,"Surveying",0]
[null,null,null,null,null,null,null,null,null,null,null,null,null,"Cartography",0,"Geology",0,"Toxicology",0]
[null,null,null,null,null,null,null,null,null,null,null,null,null,"Chemical engineering",0,"Geophysics",0,"Urban & regionl planning",0]
[null,null,null,null,null,null,null,null,null,null,null,null,null,"Chemistry",0,"Hydrography",0,"Water resources",0]
[null,null,null,null,null,null,null,null,null,null,null,null,null,"Civil engineering",0,"Landscp. architecture",0,"Zoology",0]
[null,null,null,null,null,null,null,null,null,null,null,null,null,"Climatology",0,"Marine biology",0]
[]
["Outdoors",null,null,{"$f":"NOW()","v":"2014-11-24T20:05:24.700"},4]
[null,null,null,null,null,null,null,null,null,null,null,null,18,"Archaeology",null,"Forestry",null,"Meteorology"]
[null,null,null,null,null,null,null,null,null,null,null,null,null,"Cadastral/land survey",null,"Geog. info systems ",null,"Mine surveying"]
[null,null,null,null,null,null,null,null,null,null,null,null,null,"Cartography",null,"Geology",null,"Natural resources"]
[null,null,null,null,null,null,null,null,null,null,null,null,null,"Environmental health ",null,"Geophysics",null,"Surveying"]
[null,null,null,null,null,null,null,null,null,null,null,null,null,"Environmental science",null,"Hydrography",null,"Topography"]
[null,null,null,null,null,null,null,null,null,null,null,null,null,"Exploration geology",null,"Marine biology",null,"Urban & regionl planning"]
[]
["Physics",null,null,{"$f":"NOW()","v":"2014-11-24T20:05:24.700"},3]
[null,null,null,null,null,null,null,null,null,null,null,null,42,"Aerospace eng.",0,"Geodetic surveying",0,"Mining engineering",0]
[null,null,null,null,null,null,null,null,null,null,null,null,null,"Agricultural eng.",0,"Geog. info systems ",0,"Nanotechnology",0]
[null,null,null,null,null,null,null,null,null,null,null,null,null,"Architecture",0,"Geological engineering",0,"Naval architecture",0]
[null,null,null,null,null,null,null,null,null,null,null,null,null,"Astronomy",0,"Geology",0,"Nuclear medicine",0]
[null,null,null,null,null,null,null,null,null,null,null,null,null,"Biomedical eng.",0,"Geophysics",0,"Patents",0]
[null,null,null,null,null,null,null,null,null,null,null,null,null,"Biophysics",0,"Hydrography",0,"Petroleum engineering",0]
[null,null,null,null,null,null,null,null,null,null,null,null,null,"Cardiac technology",0,"Industrial design",0,"Photovoltaics eng.",0]
[null,null,null,null,null,null,null,null,null,null,null,null,null,"Cartography",0,"Industrial engineering",0,"Physics",0]
[null,null,null,null,null,null,null,null,null,null,null,null,null,"Civil engineering",0,"Materials engineering",0,"Prosthetics/Orthotics",0]
[null,null,null,null,null,null,null,null,null,null,null,null,null,"Computer eng.",0,"Mechanical eng.",0,"Radiation therapy",0]
[null,null,null,null,null,null,null,null,null,null,null,null,null,"Electrical eng.",0,"Mechatronic eng.",0,"Surveying",0]
[null,null,null,null,null,null,null,null,null,null,null,null,null,"Electronics eng.",0,"Medical imaging",0,"Telecommunications eng.",0]
[null,null,null,null,null,null,null,null,null,null,null,null,null,"Environmental eng.",0,"Metallurgy",0]
[null,null,null,null,null,null,null,null,null,null,null,null,null,"Environmental science",0,"Meteorology",0]
[null,null,null,null,null,null,null,null,null,null,null,null,null,"Forensic science",0,"Mine surveying",0]
[]
["Electrotechnology",null,null,{"$f":"NOW()","v":"2014-11-24T20:05:24.700"},2]
[null,null,null,null,null,null,null,null,null,null,null,null,7,"Biomechanics",0,"Mechatronic eng.",0,"Telecommunications",0]
[null,null,null,null,null,null,null,null,null,null,null,null,null,"Electrical engineering",0,"Network engineering",0]
[null,null,null,null,null,null,null,null,null,null,null,null,null,"Electronics eng.",0,"Robotics",0]
[]
["Construction",null,null,{"$f":"NOW()","v":"2014-11-24T20:05:24.700"},1]
[null,null,null,null,null,null,null,null,null,null,null,null,12,"Air conditioning",null,"Electrical engineer",null,"Naval architect."]
[null,null,null,null,null,null,null,null,null,null,null,null,null,"Architecture",null,"Landscape architect.",null,"Renewable energy"]
[null,null,null,null,null,null,null,null,null,null,null,null,null,"Civil engineering",null,"Materials science",null,"Structural engineering"]
[null,null,null,null,null,null,null,null,null,null,null,null,null,"Construction proj mgmt.",null,"Mechanical eng.",null,"Urban & regional planning"]
[]
["Industrial & Automotive",null,null,{"$f":"NOW()","v":"2014-11-24T20:05:24.700"},1]
[null,null,null,null,null,null,null,null,null,null,null,null,10,"Electrical engineering",null,"Materials engineering",null,"Prosthetics/Orthotics"]
[null,null,null,null,null,null,null,null,null,null,null,null,null,"Electronics eng.",null,"Mechanical eng.",null,"Robotics"]
[null,null,null,null,null,null,null,null,null,null,null,null,null,"Industrial design",null,"Mechatronics eng."]
[null,null,null,null,null,null,null,null,null,null,null,null,null,"Industrial engineering",null,"Metallurgy"]
[]
["Maths",null,null,{"$f":"NOW()","v":"2014-11-24T20:05:24.700"},4]
[null,null,null,null,null,null,null,null,null,null,null,null,45,"Accounting",null,"Economics",null,"Metallurgy"]
[null,null,null,null,null,null,null,null,null,null,null,null,null,"Actuary",null,"Electrical engineering",null,"Meteorology"]
[null,null,null,null,null,null,null,null,null,null,null,null,null,"Aerospace eng.",null,"Electronics eng.",null,"Mining engineering"]
[null,null,null,null,null,null,null,null,null,null,null,null,null,"Agr & resource econ.",null,"Environmental eng.",null,"Naval architecture"]
[null,null,null,null,null,null,null,null,null,null,null,null,null,"Agricultural eng.",null,"Financial planning",null,"Optometry"]
[null,null,null,null,null,null,null,null,null,null,null,null,null,"Agricultural science",null,"Geophysics",null,"Orthoptics"]
[null,null,null,null,null,null,null,null,null,null,null,null,null,"Architecture",null,"Industrial design",null,"Pharmacology"]
[null,null,null,null,null,null,null,null,null,null,null,null,null,"Astronomy",null,"Industrial engineering",null,"Pharmacy"]
[null,null,null,null,null,null,null,null,null,null,null,null,null,"Biochemistry",null,"Investment analysis",null,"Physics"]
[null,null,null,null,null,null,null,null,null,null,null,null,null,"Biotechnology",null,"Market research",null,"Programming"]
[null,null,null,null,null,null,null,null,null,null,null,null,null,"Cartography",null,"Materials engineering",null,"Radiation therapy"]
[null,null,null,null,null,null,null,null,null,null,null,null,null,"Chemical engineering",null,"Mathematics",null,"Software engineering"]
[null,null,null,null,null,null,null,null,null,null,null,null,null,"Chemistry",null,"Mechanical eng.",null,"Space"]
[null,null,null,null,null,null,null,null,null,null,null,null,null,"Civil engineering",null,"Mechatronic eng.",null,"Statistics"]
[null,null,null,null,null,null,null,null,null,null,null,null,null,"Computer",null,"Medical science",null,"Surveying"]
[]
[]
["Computing",null,null,{"$f":"NOW()","v":"2014-11-24T20:05:24.700"},5]
[null,null,null,null,null,null,null,null,null,null,null,null,20,"Artificial intelligence",0,"Health information",0,"Software engineering",0]
[null,null,null,null,null,null,null,null,null,null,null,null,null,"Computer engineering",0,"Industrial engineering",0,"Statistics",0]
[null,null,null,null,null,null,null,null,null,null,null,null,null,"Data mining",0,"Mathematics",0,"Systems analysis",0]
[null,null,null,null,null,null,null,null,null,null,null,null,null,"Electronics eng.",0,"Mechatronics",0,"Systems design",0]
[null,null,null,null,null,null,null,null,null,null,null,null,null,"Engineering",0,"Multimedia",0,"Web design",0]
[null,null,null,null,null,null,null,null,null,null,null,null,null,"Games development",0,"Networks",0,"Web search",0]
[null,null,null,null,null,null,null,null,null,null,null,null,null,"Geog info systems",0,"Programming",0]
[]
["Media & Entertainment",null,null,{"$f":"NOW()","v":"2014-11-24T20:05:24.700"},3]
[null,null,null,null,null,null,null,null,null,null,null,null,7,"Animation",0,"Photography",0]
[null,null,null,null,null,null,null,null,null,null,null,null,null,"Games development",0,"Web design/development",0]
[null,null,null,null,null,null,null,null,null,null,null,null,null,"Graphic design",0,"Writing",0]
[null,null,null,null,null,null,null,null,null,null,null,null,null,"Multimedia developmnt",0]
[]
["Language",null,null,{"$f":"NOW()","v":"2014-11-24T20:05:24.700"},3]
[null,null,null,null,null,null,null,null,null,null,null,null,8,"Advertising",null,"Linguistics"]
[null,null,null,null,null,null,null,null,null,null,null,null,null,"Anthropology",null,"Science communication"]
[null,null,null,null,null,null,null,null,null,null,null,null,null,"Archaeology",null,"Speech recognition"]
[null,null,null,null,null,null,null,null,null,null,null,null,null,"Language",null,"Translation"]
[]
["Health & Community",null,null,{"$f":"NOW()","v":"2014-11-24T20:05:24.700"},3]
[null,null,null,null,null,null,null,null,null,null,null,null,28,"Anaesthetics",0,"Medical practice",0,"Prosthetics",0]
[null,null,null,null,null,null,null,null,null,null,null,null,null,"Audiology",0,"Microbiology",0,"Psychiatry",0]
[null,null,null,null,null,null,null,null,null,null,null,null,null,"Biomedical eng.",0,"Nuclear medicine",0,"Psychology",0]
[null,null,null,null,null,null,null,null,null,null,null,null,null,"Cardiac technology",0,"Occupational therapy",0,"Radiation therapy",0]
[null,null,null,null,null,null,null,null,null,null,null,null,null,"Dentistry",0,"Optometry",0,"Sociology",0]
[null,null,null,null,null,null,null,null,null,null,null,null,null,"Dietitics",0,"Orthoptics",0,"Speech pathology",0]
[null,null,null,null,null,null,null,null,null,null,null,null,null,"Education",0,"Pharmacology",0,"Surgery",0]
[null,null,null,null,null,null,null,null,null,null,null,null,null,"Environmental health ",0,"Pharmacy",0,"Toxicology",0]
[null,null,null,null,null,null,null,null,null,null,null,null,null,"Medical imaging",0,"Physiotherapy",0]
[null,null,null,null,null,null,null,null,null,null,null,null,null,"Medical lab science",0,"Podiatry",0]
[]
["Social Science",null,null,{"$f":"NOW()","v":"2014-11-24T20:05:24.700"},2]
[null,null,null,null,null,null,null,null,null,null,null,null,13,"Agric & resource econ.",0,"Economics",0,"Psychology",0]
[null,null,null,null,null,null,null,null,null,null,null,null,null,"Anthropology",0,"Environmental health",0,"Sociology",0]
[null,null,null,null,null,null,null,null,null,null,null,null,null,"Archaeology",0,"Land economics",0,"Urban & regional planning",0]
[null,null,null,null,null,null,null,null,null,null,null,null,null,"Consumer science",0,"Management consult.",0]
[null,null,null,null,null,null,null,null,null,null,null,null,null,"Criminology",0,"Market research ",0]
[]
["Business & Retail",null,null,{"$f":"NOW()","v":"2014-11-24T20:05:24.700"},1]
[null,null,null,null,null,null,null,null,null,null,null,null,11,"Advertising",0,"Finance & accounting",0,"Sales & Marketing",0]
[null,null,null,null,null,null,null,null,null,null,null,null,null,"Business systems",0,"Human resources",0,"Retail",0]
[null,null,null,null,null,null,null,null,null,null,null,null,null,"Computing",0,"Industrial relations",0,"Supply and distribution",0]
[null,null,null,null,null,null,null,null,null,null,null,null,null,"Economics",0,"Inventory management",0]
[]
["Economics",null,null,{"$f":"NOW()","v":"2014-11-24T20:05:24.700"},2]
[null,null,null,null,null,null,null,null,null,null,null,null,8,"Accountancy",0,"Investment analysis",0]
[null,null,null,null,null,null,null,null,null,null,null,null,null,"Agric & resource econ.",0,"Market research",0]
[null,null,null,null,null,null,null,null,null,null,null,null,null,"Economics",0,"Marketing",0]
[null,null,null,null,null,null,null,null,null,null,null,null,null,"Financial planning",0,"Statistics",0]
[]
["Geography",null,null,{"$f":"NOW()","v":"2014-11-24T20:05:24.700"},3]
[null,null,null,null,null,null,null,null,null,null,null,null,11,"Geological eng.",0,"Hydrology",0,"Meteorology",0]
[null,null,null,null,null,null,null,null,null,null,null,null,null,"Geology",0,"Land economics",0,"Mining engineering",0]
[null,null,null,null,null,null,null,null,null,null,null,null,null,"Geophysics",0,"Landscape architect.",0,"Natural resource management",0]
[null,null,null,null,null,null,null,null,null,null,null,null,null,"Hydrography",0,"Market research",0]
[]
["History",null,null,{"$f":"NOW()","v":"2014-11-24T20:05:24.700"},2]
[null,null,null,null,null,null,null,null,null,null,null,null,6,"Anthropology",0,"Criminology",0]
[null,null,null,null,null,null,null,null,null,null,null,null,null,"Archaeology",0,"Museums",0]
[null,null,null,null,null,null,null,null,null,null,null,null,null,"Conservation",0,"Sociology",0]
[null,null,null,null,null,"V2.1 Copyright 2014 The Sapphire Foundation"]
[{"$f":"A7","v":"Biology"},null,null,null,{"$f":"E7","v":5},"Also see career posters at www.education.gov.au/career-bullseye-posters"]
[{"$f":"A21","v":"Chemistry"},null,null,null,{"$f":"E21","v":4}]
[{"$f":"A32","v":"Food & Agriculture"},null,null,null,{"$f":"E32","v":3}]
[{"$f":"A42","v":"Environmental Science"},null,null,null,{"$f":"E42","v":3}]
[{"$f":"A56","v":"Outdoors"},null,null,null,{"$f":"E56","v":4}]
[{"$f":"A64","v":"Physics"},null,null,null,{"$f":"E64","v":3}]
[{"$f":"A81","v":"Electrotechnology"},null,null,null,{"$f":"E81","v":2}]
[{"$f":"A86","v":"Construction"},null,null,null,{"$f":"E86","v":1}]
[{"$f":"A92","v":"Industrial & Automotive"},null,null,null,{"$f":"E92","v":1}]
[{"$f":"A98","v":"Maths"},null,null,null,{"$f":"E98","v":4}]
[{"$f":"A116","v":"Computing"},null,null,null,{"$f":"E116","v":5}]
[{"$f":"A125","v":"Media & Entertainment"},null,null,null,{"$f":"E125","v":3}]
[{"$f":"A131","v":"Language"},null,null,null,{"$f":"E131","v":3}]
[{"$f":"A137","v":"Health & Community"},null,null,null,{"$f":"E137","v":3}]
[{"$f":"A149","v":"Social Science"},null,null,null,{"$f":"E149","v":2}]
[{"$f":"A156","v":"Business & Retail"},null,null,null,{"$f":"E156","v":1}]
[{"$f":"A162","v":"Economics"},null,null,null,{"$f":"E162","v":2}]
[{"$f":"A168","v":"Geography"},null,null,null,{"$f":"E168","v":3}]
[{"$f":"A174","v":"History"},null,null,null,{"$f":"E174","v":2}]

{"sheet":"Warning","index":1,"n_rows":13,"n_cols":3,"rows_kept":13,"cut":false,"hidden":false,"merged":[[3,1,3,11]]}
[]
[]
[]
[null,"MACROS ARE NOT CURRENTLY ENABLED"]
[]
[null,"1.  ","If you see a yellow bar 'Enable Content' or 'Enable Macros' at the top of this sheet, then click that and continue."]
[]
[null,"2. ","Otherwise you may have to change your security settings. In Excel go to 'File' - 'Options' - 'Trust Center'"]
[null,null,"Click the 'Trust Center Settings' and select 'Macros'. Tick 'Enable all macros'"]
[null,null,"You will also need to restart Excel after this change."]
[]
[null,"3. ","If you click to expand one of the categories and see 'You cannot use this command on a protected sheet'"]
[null,null,"it also means that macros are not enabled"]

{"sheet":"Sample","index":2,"n_rows":0,"n_cols":0,"rows_kept":0,"cut":false,"hidden":true,"merged":[]}